fUSD/lending_fUSD_20260107
["ID","MTS","AMOUNT","RATE_DAILY","PERIOD"]
[400771084,1767823841579,-567.0,0.00015355,2]
[400771086,1767823841587,-1100.0,0.00015356,2]
[400771088,1767823841596,-693.0,0.00015369,2]
[400771090,1767823841605,-500.0,0.00015384,2]
[400771092,1767823841615,-229.62898952,0.00015384,2]
[400771094,1767823841626,-851.1858208,0.0001541,2]
[400771096,1767823841636,-579.01818094,0.0001541,2]
[400771098,1767823841646,-693.0,0.00015423,2]
[400771100,1767823841656,-974.67718795,0.00015446,2]
[400771102,1767823841665,-707.2212164,0.00015478,2]
[400771104,1767823841675,-1311.91,0.00015492,2]
[400771106,1767823841684,-420.0,0.00015549,2]
[400771108,1767823841694,-2500.0,0.00015616,2]
[400771110,1767823841703,-1680.0,0.00015616,2]
[400771112,1767823841712,-1029.13192156,0.00015621,2]
[400771114,1767823841721,-515.65451742,0.00015621,2]
[400771116,1767823841731,-821.82288534,0.00015621,2]
[400771118,1767823841740,-1000.0,0.00015621,2]
[400771120,1767823841749,-1000.0,0.00015621,2]
[400771122,1767823841757,-1000.0,0.00015621,2]
[400771124,1767823841767,-1000.0,0.00015621,2]
[400771126,1767823841776,-949.69083076,0.00015621,2]
[400771128,1767823841786,-1000.0,0.00015621,2]
[400771130,1767823841795,-500.73448024,0.00015621,2]
[400771132,1767823841804,-1000.0,0.00015621,2]
[400771134,1767823841813,-1009.96734995,0.00015621,2]
[400771136,1767823841822,-1128.37348131,0.00015621,2]
[400771138,1767823841831,-1000.0,0.00015621,2]
[400771140,1767823841841,-1000.0,0.00015621,2]
[400771142,1767823841850,-1000.0,0.00015621,2]
[400771144,1767823841859,-250.0,0.00015639,2]
[400771145,1767823841868,-250.0,0.0001564,2]
[400771148,1767823841877,-195.0,0.0001564,2]
[400771149,1767823841887,-5000.0,0.0001564,2]
[400771151,1767823841896,-300.0,0.0001564,2]
[400771153,1767823841906,-195.0,0.0001564,2]
[400771155,1767823841915,-2652.28,0.00015705,2]
[400771157,1767823841924,-195.0,0.00015726,2]
[400771160,1767823841934,-299.99098701,0.00015726,2]
[400771161,1767823841943,-1311.91,0.00015766,2]
[400771163,1767823841952,-1976.22824177,0.000159,2]
[400771165,1767823841961,-1081.61,0.00015941,2]
[400771167,1767823841974,-249.063448,0.00016,2]
[400771169,1767823841983,-433.87,0.00016027,2]
[400771172,1767823841993,-1311.91,0.0001604,2]
[400771173,1767823842002,-974.67718795,0.0001606,2]
[400771176,1767823842011,-900.0,0.00016082,2]
[400771178,1767823842021,-3000.0,0.00016082,2]
[400771180,1767823842031,-401.45,0.00016109,2]
[400771182,1767823842040,-9247.15,0.00016116,2]
[400771184,1767823842050,-500.0,0.00016164,2]
[400771186,1767823842059,-150.0,0.00016164,2]
[400771188,1767823842068,-150.0,0.00016164,2]
[400771190,1767823842077,-150.0,0.00016164,2]
[400771192,1767823842086,-150.0,0.00016164,2]
[400771194,1767823842096,-178.03708143,0.00016164,2]
[400771196,1767823842105,-1100.0,0.00016164,2]
[400771198,1767823842115,-500.0,0.00016164,2]
[400771200,1767823842124,-500.0,0.00016168,2]
[400771202,1767823842133,-1500.0,0.00016168,2]
[400771204,1767823842143,-1500.0,0.00016168,2]
[400771206,1767823842153,-1500.0,0.00016168,2]
[400771208,1767823842162,-1500.0,0.00016168,2]
[400771210,1767823842172,-1176.00349903,0.00016168,2]
[400771212,1767823842181,-1500.0,0.00016168,2]
[400771214,1767823842190,-1500.0,0.00016168,2]
[400771216,1767823842199,-1500.0,0.00016168,2]
[400771218,1767823842209,-241.0280778,0.00016194,2]
[400771220,1767823842218,-581.23799714,0.00016219,2]
[400771222,1767823842228,-150.0,0.00016219,2]
[400771224,1767823842237,-150.0,0.00016219,2]
[400771226,1767823842247,-271.23482998,0.00016219,2]
[400771228,1767823842257,-151.0,0.00016251,2]
[400771230,1767823842267,-204.51452503,0.00016274,2]
[400771232,1767823842277,-150.0,0.00016274,2]
[400771234,1767823842286,-1311.91,0.00016314,2]
[400771236,1767823842294,-249.62704522,0.00016328,2]
[400771238,1767823842303,-209.35465995,0.00016338,2]
[400771240,1767823842314,-1100.0,0.00016356,2]
[400771242,1767823842323,-500.0,0.00016437,2]
[400771244,1767823842333,-500.0,0.00016437,2]
[400771246,1767823842344,-500.0,0.00016437,2]
[400771248,1767823842353,-500.0,0.00016437,2]
[400771250,1767823842363,-500.0,0.00016438,2]
[400771252,1767823842372,-800.0,0.00016438,2]
[400771253,1767823842381,-165.16,0.0001644,2]
[400771256,1767823842391,-500.0,0.00016493,2]
[400771257,1767823842400,-433.0,0.00016524,2]
[400771259,1767823842409,-500.0,0.00016548,2]
[400771261,1767823842419,-1311.91,0.00016588,2]
[400771263,1767823842428,-188.33554362,0.00016602,2]
[400771265,1767823842438,-500.0,0.00016643,2]
[400771267,1767823842448,-500.0,0.00016643,2]
[400771269,1767823842457,-507.8387061,0.00016643,2]
[400771271,1767823842466,-628.50709886,0.00016643,2]
[400771273,1767823842475,-500.0,0.00016643,2]
[400771275,1767823842484,-448.72451731,0.00016649,2]
[400771277,1767823842493,-578.20924308,0.00016649,2]
[400771279,1767823842502,-200.0,0.00016649,2]
[400771281,1767823842512,-500.0,0.00016649,2]
[400771283,1767823842521,-207.4,0.00016649,2]
[400771285,1767823842530,-500.0,0.00016649,2]
[400771287,1767823842539,-2000.0,0.00016649,2]
[400771289,1767823842548,-215.0738,0.00016649,2]
[400771291,1767823842557,-500.0,0.00016649,2]
[400771293,1767823842567,-2000.0,0.00016649,2]
[400771295,1767823842581,-223.0315306,0.00016649,2]
[400771297,1767823842591,-500.0,0.00016649,2]
[400771299,1767823842601,-500.0,0.00016649,2]
[400771301,1767823842610,-2000.0,0.00016649,2]
[400771303,1767823842621,-574.12855637,0.00016649,2]
[400771305,1767823842630,-231.28369723,0.00016649,2]
[400771307,1767823842639,-500.0,0.00016649,2]
[400771309,1767823842649,-500.0,0.00016649,2]
[400771311,1767823842658,-2000.0,0.00016649,2]
[400771313,1767823842668,-239.84119403,0.00016649,2]
[400771315,1767823842677,-500.0,0.00016649,2]
[400771317,1767823842686,-500.0,0.00016649,2]
[400771319,1767823842695,-248.71531821,0.00016649,2]
[400771321,1767823842704,-2000.0,0.00016649,2]
[400771323,1767823842714,-500.0,0.00016649,2]
[400771325,1767823842723,-500.0,0.00016649,2]
[400771327,1767823842732,-500.0,0.00016649,2]
[400771329,1767823842742,-257.91778498,0.00016649,2]
[400771331,1767823842751,-2000.0,0.00016649,2]
[400771333,1767823842761,-500.0,0.00016649,2]
[400771335,1767823842770,-500.0,0.00016649,2]
[400771337,1767823842779,-500.0,0.00016649,2]
[400771339,1767823842788,-2000.0,0.00016649,2]
[400771341,1767823842798,-500.0,0.00016649,2]
[400771343,1767823842807,-267.46074303,0.00016649,2]
[400771344,1767823842816,-500.0,0.00016649,2]
[400771345,1767823842825,-500.0,0.00016649,2]
[400771346,1767823842834,-2000.0,0.00016649,2]
[400771347,1767823842843,-500.0,0.00016649,2]
[400771348,1767823842853,-277.35679052,0.00016649,2]
[400771349,1767823842862,-500.0,0.00016649,2]
[400771350,1767823842871,-500.0,0.00016649,2]
[400771351,1767823842881,-2000.0,0.00016649,2]
[400771352,1767823842890,-500.0,0.00016649,2]
[400771353,1767823842899,-500.0,0.00016649,2]
[400771354,1767823842908,-500.0,0.00016649,2]
[400771355,1767823842918,-2000.0,0.00016649,2]
[400771356,1767823842927,-500.0,0.00016649,2]
[400771358,1767823842936,-500.0,0.00016649,2]
[400771360,1767823842945,-2000.0,0.00016649,2]
[400771362,1767823842955,-500.0,0.00016649,2]
[400771364,1767823842964,-500.0,0.00016649,2]
[400771366,1767823842973,-500.0,0.00016649,2]
[400771368,1767823842982,-500.0,0.00016649,2]
[400771370,1767823842992,-500.0,0.00016649,2]
[400771372,1767823843001,-500.0,0.00016649,2]
[400771374,1767823843010,-500.0,0.00016649,2]
[400771376,1767823843020,-151.55763012,0.00016649,2]
[400771378,1767823843032,-1500.0,0.00016649,2]
[400771380,1767823843041,-1500.0,0.00016649,2]
[400771382,1767823843051,-620.0,0.00016649,2]
[400771384,1767823843062,-1500.0,0.00016649,2]
[400771386,1767823843071,-1500.0,0.00016649,2]
[400771388,1767823843080,-1500.0,0.00016649,2]
[400771390,1767823843089,-1500.0,0.00016649,2]
[400771392,1767823843098,-1500.0,0.00016649,2]
[400771394,1767823843108,-1500.0,0.00016649,2]
[400771396,1767823843117,-1500.0,0.00016649,2]
[400771398,1767823843127,-1500.0,0.00016649,2]
[400771400,1767823843136,-1500.0,0.00016649,2]
[400771402,1767823843145,-250.0,0.00016649,2]
[400771404,1767823843155,-250.0,0.00016649,2]
[400771406,1767823843165,-322.6107,0.00016649,2]
[400771432,1767823843403,-1081.61,0.00016665,2]
[400771434,1767823843413,-10942.0,0.00016666,2]
[400771436,1767823843423,-12965.7455232,0.00016666,2]
[400771439,1767823843432,-974.67718795,0.00016673,2]
[400771441,1767823843442,-165.13,0.00016712,2]
[400771442,1767823843452,-2000.0,0.00016716,2]
[400771445,1767823843462,-2000.0,0.00016716,2]
[400771447,1767823843472,-2000.0,0.00016716,2]
[400771449,1767823843481,-1652.22115376,0.00016716,2]
[400771452,1767823843491,-2000.0,0.00016716,2]
[400771454,1767823843500,-433.87,0.00016739,2]
[400771456,1767823843509,-181.06,0.00016807,2]
[400771458,1767823843518,-2181.0,0.00016833,2]
[400771460,1767823843527,-1311.91,0.00016862,2]
[400771462,1767823843536,-401.45,0.00016915,2]
[400771463,1767823843546,-1983.0,0.00016955,2]
[400771466,1767823843556,-300.0,0.00016956,2]
[400771468,1767823843566,-300.0,0.00016973,2]
[400771469,1767823843578,-300.0,0.00016975,2]
[400771472,1767823843588,-51772.07,0.00016986,2]
[400771474,1767823843598,-300.0,0.00016987,2]
[400771476,1767823843608,-1000.0,0.00017,2]
[400771478,1767823843618,-250.0,0.00017,2]
[400771480,1767823843627,-1000.0,0.00017004,2]
[400771482,1767823843636,-300.0,0.00017012,2]
[400771483,1767823843645,-1100.0,0.00017015,2]
[400771486,1767823843655,-300.0,0.00017028,2]
[400771488,1767823843665,-587.0,0.00017032,2]
[400771490,1767823843675,-482.63,0.00017041,2]
[400771492,1767823843685,-964.76,0.00017041,2]
[400771494,1767823843694,-157.51038049,0.00017044,2]
[400771496,1767823843703,-300.0,0.00017045,2]
[400771498,1767823843713,-300.0,0.00017045,2]
[400771500,1767823843722,-1000.0,0.00017063,2]
[400771502,1767823843731,-300.0,0.00017074,2]
[400771504,1767823843740,-12965.7455232,0.00017077,2]
[400771506,1767823843749,-1983.0,0.00017098,2]
[400771508,1767823843758,-300.0,0.00017109,2]
[400771510,1767823843767,-500.0,0.00017111,2]
[400771512,1767823843777,-500.0,0.00017116,2]
[400771514,1767823843787,-300.0,0.00017116,2]
[400771516,1767823843797,-300.0,0.0001712,2]
[400771518,1767823843806,-482.63,0.00017123,2]
[400771520,1767823843816,-482.63,0.00017123,2]
[400771522,1767823843826,-482.63,0.00017123,2]
[400771524,1767823843835,-482.63,0.00017123,2]
[400771526,1767823843846,-482.63,0.00017123,2]
[400771528,1767823843856,-300.0,0.00017128,2]
[400771530,1767823843866,-300.0,0.00017129,2]
[400771532,1767823843875,-1311.91,0.00017136,2]
[400771534,1767823843885,-1000.0,0.00017141,2]
[400771536,1767823843894,-965.26,0.00017141,2]
[400771538,1767823843904,-300.0,0.00017167,2]
[400771540,1767823843914,-300.0,0.00017174,2]
[400771542,1767823843923,-200.0,0.00017174,2]
[400771544,1767823843933,-2351.0,0.00017177,2]
[400771546,1767823843942,-171.3,0.00017178,2]
[400771548,1767823843951,-171.3,0.00017178,2]
[400771550,1767823843960,-466.59,0.00017178,2]
[400771552,1767823843970,-466.59,0.00017178,2]
[400771554,1767823843980,-171.3,0.00017178,2]
[400771556,1767823843989,-300.0,0.00017184,2]
[400771559,1767823844010,-1000.0,0.00017185,2]
[400771561,1767823844020,-1000.0,0.00017185,2]
[400771563,1767823844030,-1000.0,0.00017191,2]
[400771565,1767823844040,-300.0,0.00017195,2]
[400771567,1767823844050,-595.37131296,0.00017197,2]
[400771569,1767823844059,-300.0,0.00017205,2]
[400771571,1767823844069,-300.0,0.00017205,2]
[400771573,1767823844079,-300.0,0.00017214,2]
[400771575,1767823844088,-300.0,0.00017221,2]
[400771578,1767823844099,-1000.0,0.00017222,2]
[400771580,1767823844109,-300.0,0.00017227,2]
[400771582,1767823844118,-150.0,0.00017237,2]
[400771584,1767823844128,-150.0,0.00017237,2]
[400771586,1767823844138,-1000.0,0.00017238,2]
[400771588,1767823844148,-304.2281947,0.00017239,2]
[400771590,1767823844157,-300.0,0.00017243,2]
[400771592,1767823844167,-1000.0,0.00017243,2]
[400771594,1767823844177,-1983.0,0.00017246,2]
[400771596,1767823844187,-300.0,0.00017248,2]
[400771598,1767823844196,-300.0,0.00017249,2]
[400771600,1767823844206,-181.06,0.00017253,2]
[400771602,1767823844215,-300.0,0.00017264,2]
[400771604,1767823844225,-2500.0,0.00017264,2]
[400771606,1767823844235,-505.38555235,0.00017264,2]
[400771608,1767823844244,-2500.0,0.00017264,2]
[400771610,1767823844254,-2500.0,0.00017264,2]
[400771612,1767823844263,-1000.0,0.00017271,2]
[400771614,1767823844273,-300.0,0.00017278,2]
[400771616,1767823844283,-300.0,0.00017284,2]
[400771618,1767823844292,-1000.0,0.00017286,2]
[400771620,1767823844302,-974.67718795,0.00017287,2]
[400771622,1767823844311,-1000.0,0.00017288,2]
[400771624,1767823844321,-300.0,0.00017289,2]
[400771626,1767823844331,-2144.0,0.00017289,2]
[400771628,1767823844341,-300.0,0.0001729,2]
[400771630,1767823844350,-1000.0,0.00017293,2]
[400771632,1767823844360,-300.0,0.00017297,2]
[400771634,1767823844369,-1000.0,0.00017298,2]
[400771636,1767823844379,-1000.0,0.00017314,2]
[400771638,1767823844388,-150.0,0.00017316,2]
[400771640,1767823844398,-300.0,0.0001732,2]
[400771642,1767823844408,-1000.0,0.0001732,2]
[400771644,1767823844418,-827.5,0.0001732,2]
[400771646,1767823844428,-300.0,0.00017336,2]
[400771648,1767823844439,-1000.0,0.00017336,2]
[400771650,1767823844448,-1000.0,0.00017336,2]
[400771652,1767823844458,-300.0,0.00017349,2]
[400771654,1767823844467,-1000.0,0.00017349,2]
[400771656,1767823844478,-300.0,0.00017351,2]
[400771658,1767823844489,-150.0,0.00017351,2]
[400771660,1767823844498,-300.0,0.00017361,2]
[400771662,1767823844508,-1241.95354039,0.00017363,2]
[400771664,1767823844518,-300.0,0.00017366,2]
[400771666,1767823844527,-300.0,0.00017376,2]
[400771668,1767823844537,-1983.0,0.00017382,2]
[400771670,1767823844546,-1081.61,0.0001739,2]
[400771673,1767823844556,-1000.0,0.0001739,2]
[400771675,1767823844569,-1000.0,0.00017396,2]
[400771677,1767823844584,-500.0,0.00017397,2]
[400771679,1767823844594,-300.0,0.00017401,2]
[400771681,1767823844603,-300.0,0.00017403,2]
[400771682,1767823844613,-1000.0,0.00017405,2]
[400771685,1767823844622,-1311.91,0.0001741,2]
[400771686,1767823844631,-1000.0,0.00017411,2]
[400771689,1767823844641,-300.0,0.00017421,2]
[400771691,1767823844650,-1000.0,0.00017429,2]
[400771693,1767823844661,-300.0,0.00017444,2]
[400771695,1767823844670,-900.0,0.00017452,7]
[400771697,1767823844679,-3000.0,0.00017452,7]
[400771699,1767823844689,-150.0,0.00017456,2]
[400771701,1767823844698,-300.0,0.00017462,2]
[400771703,1767823844708,-300.0,0.00017462,2]
[400771705,1767823844717,-1000.0,0.00017462,2]
[400771707,1767823844727,-1000.0,0.00017467,2]
[400771709,1767823844737,-1000.0,0.00017471,2]
[400771711,1767823844746,-300.0,0.00017472,2]
[400771713,1767823844756,-300.0,0.00017479,2]
[400771715,1767823844766,-241.04,0.00017482,2]
[400771717,1767823844776,-150.0,0.00017484,2]
[400771719,1767823844785,-12965.7455232,0.00017489,2]
[400771721,1767823844795,-300.0,0.00017498,2]
[400771723,1767823844805,-2000.0,0.000175,2]
[400771725,1767823844815,-1000.0,0.000175,2]
[400771727,1767823844824,-150.0,0.00017503,2]
[400771729,1767823844833,-241.04,0.00017513,2]
[400771731,1767823844843,-300.0,0.00017523,2]
[400771732,1767823844852,-1000.0,0.00017527,2]
[400771735,1767823844861,-300.0,0.0001753,2]
[400771737,1767823844876,-240.82358149,0.00017534,2]
[400771739,1767823844886,-300.0,0.00017536,2]
[400771741,1767823844897,-1000.0,0.00017537,2]
[400771743,1767823844906,-300.0,0.00017547,2]
[400771745,1767823844916,-150.0,0.00017552,2]
[400771747,1767823844925,-300.0,0.00017553,2]
[400771749,1767823844935,-300.0,0.00017554,2]
[400771751,1767823844945,-300.0,0.00017556,2]
[400771753,1767823844955,-1000.0,0.0001756,2]
[400771755,1767823844964,-1000.0,0.00017573,2]
[400771757,1767823844974,-1000.0,0.00017581,2]
[400771759,1767823844984,-300.0,0.00017587,2]
[400771762,1767823844994,-300.0,0.00017588,2]
[400771764,1767823845003,-300.0,0.0001759,2]
[400771766,1767823845016,-300.0,0.00017591,2]
[400771768,1767823845026,-1000.0,0.00017592,2]
[400771770,1767823845036,-1000.0,0.00017596,2]
[400771772,1767823845046,-300.0,0.000176,2]
[400771774,1767823845055,-1000.0,0.00017615,2]
[400771776,1767823845065,-300.0,0.00017624,2]
[400771778,1767823845075,-300.0,0.00017626,2]
[400771780,1767823845084,-150.0,0.00017627,2]
[400771782,1767823845094,-3467.0,0.0001763,2]
[400771784,1767823845103,-619.404,0.0001763,2]
[400771786,1767823845112,-161.58,0.0001763,2]
[400771788,1767823845122,-1330.0,0.0001763,2]
[400771790,1767823845131,-1405.0,0.0001763,2]
[400771792,1767823845141,-505.0,0.0001763,2]
[400771794,1767823845151,-1343.242,0.0001763,2]
[400771797,1767823845161,-920.093,0.0001763,2]
[400771799,1767823845171,-1207.708,0.0001763,2]
[400771801,1767823845181,-2436.0,0.0001763,2]
[400771803,1767823845191,-565.0,0.0001763,2]
[400771805,1767823845200,-4818.0,0.0001763,2]
[400771807,1767823845210,-847.56924105,0.00017631,2]
[400771809,1767823845221,-150.0,0.00017635,2]
[400771811,1767823845231,-300.0,0.00017637,2]
[400771813,1767823845241,-4077.21407542,0.0001764,2]
[400771815,1767823845251,-300.0,0.00017647,2]
[400771817,1767823845261,-300.0,0.00017647,2]
[400771819,1767823845271,-300.0,0.00017647,2]
[400771821,1767823845282,-556.08,0.00017652,2]
[400771823,1767823845292,-150.0,0.00017654,2]
[400771824,1767823845303,-300.0,0.00017656,2]
[400771825,1767823845312,-300.0,0.0001766,2]
[400771826,1767823845323,-300.0,0.0001767,2]
[400771828,1767823845332,-150.0,0.00017678,2]
[400771830,1767823845341,-150.0,0.00017683,2]
[400771832,1767823845351,-1000.0,0.00017684,2]
[400771834,1767823845360,-1311.91,0.00017684,2]
[400771836,1767823845370,-300.0,0.00017685,2]
[400771838,1767823845379,-1000.0,0.00017688,2]
[400771840,1767823845390,-300.0,0.00017692,2]
[400771842,1767823845400,-300.0,0.00017694,2]
[400771844,1767823845409,-1000.0,0.00017695,2]
[400771846,1767823845419,-157.51038049,0.000177,2]
[400771848,1767823845429,-1000.0,0.000177,2]
[400771850,1767823845438,-150.0,0.00017706,2]
[400771852,1767823845448,-300.0,0.00017712,2]
[400771854,1767823845458,-1000.0,0.00017713,2]
[400771856,1767823845469,-401.45,0.0001772,2]
[400771858,1767823845479,-300.0,0.00017721,2]
[400771861,1767823845491,-181.06,0.00017724,2]
[400771863,1767823845500,-1100.0,0.00017726,7]
[400771865,1767823845513,-634.29540262,0.0001773,2]
[400771867,1767823845523,-450.04111853,0.00017739,2]
[400771869,1767823845533,-300.0,0.0001774,2]
[400771871,1767823845544,-300.0,0.00017741,2]
[400771873,1767823845553,-300.0,0.00017741,2]
[400771875,1767823845563,-25000.0,0.00017742,3]
[400771877,1767823845574,-150.0,0.00017742,2]
[400771879,1767823845583,-617.40005154,0.00017745,2]
[400771881,1767823845593,-181.06,0.00017749,2]
[400771883,1767823845602,-500.0,0.0001775,2]
[400771885,1767823845612,-500.0,0.0001775,2]
[400771887,1767823845622,-25000.0,0.0001775,3]
[400771889,1767823845631,-25000.0,0.00017759,3]
[400771891,1767823845640,-300.0,0.00017763,2]
[400771893,1767823845652,-787.35487633,0.00017765,2]
[400771895,1767823845661,-300.0,0.00017766,2]
[400771897,1767823845670,-1000.0,0.00017767,2]
[400771899,1767823845680,-25000.0,0.00017768,3]
[400771901,1767823845689,-1000.0,0.00017769,2]
[400771903,1767823845700,-300.0,0.00017774,2]
[400771905,1767823845709,-25000.0,0.00017777,3]
[400771907,1767823845718,-25000.0,0.00017786,3]
[400771909,1767823845728,-300.0,0.00017788,2]
[400771923,1767823845843,-500.0,0.00017792,2]
[400771925,1767823845853,-787.35487633,0.00017792,2]
[400771927,1767823845862,-25000.0,0.00017794,3]
[400771929,1767823845872,-1000.0,0.000178,2]
[400771931,1767823845881,-25000.0,0.00017803,3]
[400771933,1767823845890,-300.0,0.00017804,2]
[400771935,1767823845899,-2144.0,0.00017807,2]
[400771937,1767823845908,-150.0,0.00017808,2]
[400771939,1767823845917,-1000.0,0.00017808,2]
[400771941,1767823845926,-1000.0,0.0001781,2]
[400771943,1767823845935,-25000.0,0.00017812,3]
[400771945,1767823845944,-1500.0,0.00017812,2]
[400771947,1767823845953,-2448.81970011,0.00017812,2]
[400771949,1767823845963,-3000.0,0.00017812,2]
[400771951,1767823845972,-300.0,0.00017813,2]
[400771953,1767823845981,-634.2954026,0.00017815,2]
[400771955,1767823845990,-787.35487633,0.00017819,2]
[400771957,1767823845999,-1854.99789,0.0001782,2]
[400771959,1767823846008,-1854.99788,0.0001782,2]
[400771961,1767823846018,-25000.0,0.00017821,3]
[400771963,1767823846027,-1000.0,0.00017828,2]
[400771965,1767823846036,-25000.0,0.0001783,3]
[400771967,1767823846045,-261.94980575,0.0001783,2]
[400771969,1767823846054,-1854.99789,0.0001783,2]
[400771971,1767823846063,-736.0,0.0001783,2]
[400771973,1767823846072,-300.0,0.00017835,2]
[400771975,1767823846082,-300.0,0.00017836,2]
[400771977,1767823846091,-300.0,0.00017837,2]
[400771979,1767823846102,-500.0,0.00017838,2]
[400771981,1767823846111,-300.0,0.00017838,2]
[400771982,1767823846120,-400.58303632,0.00017838,2]
[400771985,1767823846131,-25000.0,0.00017838,3]
[400771987,1767823846141,-300.0,0.00017839,2]
[400771988,1767823846150,-1000.0,0.00017845,2]
[400771991,1767823846159,-787.35487633,0.00017846,2]
[400771993,1767823846169,-25000.0,0.00017847,3]
[400771995,1767823846178,-300.0,0.00017848,2]
[400771997,1767823846188,-300.0,0.00017848,2]
[400771999,1767823846197,-189.05,0.0001785,2]
[400772001,1767823846206,-1000.0,0.0001785,2]
[400772003,1767823846215,-1000.0,0.0001785,2]
[400772004,1767823846224,-200.0,0.00017855,2]
[400772006,1767823846233,-200.0,0.00017856,2]
[400772009,1767823846243,-25000.0,0.00017856,3]
[400772010,1767823846252,-200.0,0.00017856,2]
[400772012,1767823846261,-200.0,0.00017856,2]
[400772014,1767823846270,-300.0,0.00017857,2]
[400772016,1767823846279,-300.0,0.0001786,2]
[400772019,1767823846289,-300.0,0.0001786,2]
[400772021,1767823846298,-1000.0,0.0001786,2]
[400772022,1767823846307,-1854.99789,0.0001786,2]
[400772025,1767823846318,-25000.0,0.00017865,3]
[400772027,1767823846327,-300.0,0.00017865,2]
[400772029,1767823846336,-787.35487633,0.00017873,2]
[400772031,1767823846346,-25000.0,0.00017874,3]
[400772033,1767823846355,-1000.0,0.0001788,2]
[400772035,1767823846364,-1854.99788,0.0001788,2]
[400772037,1767823846373,-25000.0,0.00017882,3]
[400772039,1767823846383,-1000.0,0.00017884,2]
[400772041,1767823846392,-1000.0,0.00017887,2]
[400772042,1767823846401,-1000.0,0.0001789,2]
[400772044,1767823846410,-25000.0,0.00017891,3]
[400772047,1767823846419,-500.0,0.00017899,2]
[400772049,1767823846429,-1000.0,0.000179,2]
[400772050,1767823846438,-10000.0,0.000179,2]
[400772052,1767823846448,-354.6377,0.000179,2]
[400772054,1767823846457,-25000.0,0.000179,3]
[400772056,1767823846466,-974.67718795,0.000179,2]
[400772058,1767823846475,-634.2954026,0.000179,2]
[400772060,1767823846484,-12082.99039521,0.000179,2]
[400772117,1767823846992,-882.75512799,0.000179,2]
[400772119,1767823847003,-15634.83358827,0.000179,3]
[400772121,1767823847012,-1000.0,0.000179,2]
[400772123,1767823847022,-787.35487633,0.000179,2]
[400772125,1767823847032,-1000.0,0.00017902,2]
[400772127,1767823847042,-300.0,0.00017906,2]
[400772129,1767823847051,-1000.0,0.00017909,2]
[400772131,1767823847059,-1854.99789,0.0001791,2]
[400772133,1767823847068,-1100.0,0.00017911,2]
[400772135,1767823847078,-300.0,0.0001792,2]
[400772136,1767823847087,-150.0,0.00017923,2]
[400772138,1767823847097,-1000.0,0.00017927,2]
[400772140,1767823847107,-1000.0,0.00017929,2]
[400772142,1767823847116,-1000.0,0.00017932,2]
[400772144,1767823847127,-1000.0,0.00017935,2]
[400772146,1767823847137,-300.0,0.00017937,2]
[400772148,1767823847147,-1000.0,0.0001794,2]
[400772150,1767823847157,-300.0,0.00017947,2]
[400772152,1767823847167,-300.0,0.00017949,2]
[400772154,1767823847176,-300.0,0.00017953,2]
[400772156,1767823847186,-1311.91,0.00017958,2]
[400772158,1767823847196,-1000.0,0.0001797,2]
[400772160,1767823847205,-1000.0,0.0001797,2]
[400772162,1767823847215,-1000.0,0.0001797,2]